[Event "*** Titled Tuesday Blitz"]
[Site "Chess.com"]
[Date "2020.11.10"]
[Round "3"]
[White "ErikRonka"]
[Black "RestartingChess"]
[Result "1/2-1/2"]
[WhiteElo "2390"]
[BlackElo "2577"]
[TimeControl "180+1"]
[EndTime "10:31:55 PST"]
[Termination "Game drawn by agreement"]

1. e4 {[%clk 0:03:00.9]} 1... Nf6 {[%clk 0:03:00.6]} 2. Nc3 {[%clk 0:02:52]}
2... d6 {[%clk 0:03:00.8]} 3. d4 {[%clk 0:02:51.7]} 3... g6 {[%clk 0:03:01.3]}
4. f4 {[%clk 0:02:51.7]} 4... Bg7 {[%clk 0:03:01.5]} 5. a3 {[%clk 0:02:52.3]}
5... c5 {[%clk 0:03:02]} 6. dxc5 {[%clk 0:02:51.5]} 6... dxc5 {[%clk 0:03:01.5]}
7. Qxd8+ {[%clk 0:02:50.9]} 7... Kxd8 {[%clk 0:03:02.1]} 8. Nf3 {[%clk
0:02:46.7]} 8... Ke8 {[%clk 0:02:57.4]} 9. Be3 {[%clk 0:02:46.2]} 9... b6 {[%clk
0:02:55.8]} 10. Bd3 {[%clk 0:02:30.5]} 10... Bb7 {[%clk 0:02:54.6]} 11. O-O
{[%clk 0:02:26.4]} 11... Ng4 {[%clk 0:02:50.8]} 12. Bd2 {[%clk 0:02:21.8]} 12...
Nc6 {[%clk 0:02:49.1]} 13. h3 {[%clk 0:02:19.1]} 13... Nf6 {[%clk 0:02:49.1]}
14. e5 {[%clk 0:02:18.5]} 14... Nd7 {[%clk 0:02:44.9]} 15. Rae1 {[%clk
0:02:03.6]} 15... Nd4 {[%clk 0:02:33.2]} 16. Nxd4 {[%clk 0:01:58.6]} 16... cxd4
{[%clk 0:02:32.8]} 17. Nb5 {[%clk 0:01:58.1]} 17... Kf8 {[%clk 0:02:26.3]} 18.
Nxd4 {[%clk 0:01:47.7]} 18... Nc5 {[%clk 0:02:26.7]} 19. Bc4 {[%clk 0:01:45]}
19... Rd8 {[%clk 0:02:25.1]} 20. c3 {[%clk 0:01:43.7]} 20... e6 {[%clk
0:02:19.4]} 21. Be3 {[%clk 0:01:39.3]} 21... a6 {[%clk 0:01:55.5]} 22. Rd1
{[%clk 0:01:35]} 22... Ke7 {[%clk 0:01:45.7]} 23. Nc2 {[%clk 0:01:27.4]} 23...
Na4 {[%clk 0:01:21.9]} 24. Bc1 {[%clk 0:01:03.5]} 24... b5 {[%clk 0:01:18.3]}
25. Be2 {[%clk 0:00:59]} 25... Rxd1 {[%clk 0:01:11]} 26. Rxd1 {[%clk 0:00:58.5]}
26... Rd8 {[%clk 0:01:11.7]} 27. Rxd8 {[%clk 0:00:56.2]} 27... Kxd8 {[%clk
0:01:12.2]} 28. Kf2 {[%clk 0:00:51.9]} 28... Bf8 {[%clk 0:01:11.4]} 29. g3
{[%clk 0:00:47.9]} 29... Bc5+ {[%clk 0:01:09.5]} 30. Nd4 {[%clk 0:00:48.2]}
30... Kd7 {[%clk 0:00:53.7]} 31. Bf3 {[%clk 0:00:48.2]} 31... Bxf3 {[%clk
0:00:50]} 32. Kxf3 {[%clk 0:00:49.1]} 32... Bxd4 {[%clk 0:00:48.5]} 33. cxd4
{[%clk 0:00:50]} 33... Nb6 {[%clk 0:00:49.1]} 34. Ke4 {[%clk 0:00:47.1]} 34...
h5 {[%clk 0:00:45.8]} 35. g4 {[%clk 0:00:46.9]} 35... hxg4 {[%clk 0:00:45.8]}
36. hxg4 {[%clk 0:00:47.8]} 36... a5 {[%clk 0:00:41.7]} 37. f5 {[%clk
0:00:46.4]} 37... gxf5+ {[%clk 0:00:41.4]} 38. gxf5 {[%clk 0:00:46.2]} 38... Kc6
{[%clk 0:00:23.5]} 39. Bd2 {[%clk 0:00:42.8]} 39... Nc4 {[%clk 0:00:23.2]} 40.
Bc3 {[%clk 0:00:41.7]} 40... b4 {[%clk 0:00:20.4]} 41. axb4 {[%clk 0:00:39.2]}
41... axb4 {[%clk 0:00:21.1]} 42. Bxb4 {[%clk 0:00:39.5]} 42... Nxb2 {[%clk
0:00:21.7]} 43. Bc3 {[%clk 0:00:22.5]} 43... Nc4 {[%clk 0:00:21]} 44. Bb4 {[%clk
0:00:17.7]} 44... Nb6 {[%clk 0:00:21.2]} 45. Bc5 {[%clk 0:00:17]} 45... Nd5
{[%clk 0:00:20.2]} 46. Bd6 {[%clk 0:00:14.7]} 46... Nc3+ {[%clk 0:00:20.4]} 47.
Kd3 {[%clk 0:00:14.2]} 47... Nb5 {[%clk 0:00:20.3]} 48. fxe6 {[%clk 0:00:13.8]}
48... fxe6 {[%clk 0:00:20.8]} 49. Bc5 {[%clk 0:00:13.5]} 49... Nc7 {[%clk
0:00:21.2]} 50. Ke3 {[%clk 0:00:14.1]} 50... Nd5+ {[%clk 0:00:21.7]} 51. Ke4
{[%clk 0:00:14.5]} 1/2-1/2

[Event "*** Titled Tuesday Blitz"]
[Site "Chess.com"]
[Date "2020.11.10"]
[Round "3"]
[White "vladimirssvesnikovs"]
[Black "AleksanderHnydiuk"]
[Result "1/2-1/2"]
[WhiteElo "2262"]
[BlackElo "2496"]
[TimeControl "180+1"]
[EndTime "10:31:55 PST"]
[Termination "Game drawn by repetition"]

1. e4 {[%clk 0:03:00.9]} 1... c5 {[%clk 0:02:59.7]} 2. c3 {[%clk 0:03:01]} 2...
d5 {[%clk 0:02:57.4]} 3. exd5 {[%clk 0:03:01.9]} 3... Qxd5 {[%clk 0:02:57.8]} 4.
d4 {[%clk 0:03:02]} 4... Nf6 {[%clk 0:02:58.3]} 5. Nf3 {[%clk 0:03:02.6]} 5...
e6 {[%clk 0:02:58.6]} 6. Be2 {[%clk 0:03:02.2]} 6... Be7 {[%clk 0:02:55.9]} 7.
O-O {[%clk 0:03:02.2]} 7... O-O {[%clk 0:02:55.9]} 8. c4 {[%clk 0:03:02.5]} 8...
Qd8 {[%clk 0:02:52.8]} 9. Nc3 {[%clk 0:03:01.7]} 9... b6 {[%clk 0:02:25.5]} 10.
Be3 {[%clk 0:02:30.1]} 10... cxd4 {[%clk 0:02:14.7]} 11. Nxd4 {[%clk 0:02:31]}
11... Bb7 {[%clk 0:02:14]} 12. Bf3 {[%clk 0:02:31.1]} 12... Qc8 {[%clk
0:02:08.9]} 13. Rc1 {[%clk 0:02:05]} 13... Nbd7 {[%clk 0:02:02.9]} 14. b3 {[%clk
0:01:28.1]} 14... Ne5 {[%clk 0:02:00.4]} 15. Bxb7 {[%clk 0:01:25.5]} 15... Qxb7
{[%clk 0:02:01.3]} 16. Qe2 {[%clk 0:01:21.6]} 16... Rfd8 {[%clk 0:01:48.3]} 17.
h3 {[%clk 0:01:20.7]} 17... Rac8 {[%clk 0:01:46.3]} 18. Rfd1 {[%clk 0:01:19.7]}
18... a6 {[%clk 0:01:33.9]} 19. Bf4 {[%clk 0:01:13.2]} 19... Ng6 {[%clk
0:01:26.9]} 20. Bg3 {[%clk 0:01:11.6]} 20... Bb4 {[%clk 0:01:11.7]} 21. Nf3
{[%clk 0:00:50.6]} 21... Rxd1+ {[%clk 0:01:02.4]} 22. Nxd1 {[%clk 0:00:51.5]}
22... b5 {[%clk 0:00:57.2]} 23. Ne3 {[%clk 0:00:49.7]} 23... Ne4 {[%clk
0:00:53.1]} 24. Be5 {[%clk 0:00:44.8]} 24... Nxe5 {[%clk 0:00:50.7]} 25. Nxe5
{[%clk 0:00:45.7]} 25... Rd8 {[%clk 0:00:40.9]} 26. Qf3 {[%clk 0:00:41.2]} 26...
f5 {[%clk 0:00:34.7]} 27. Rd1 {[%clk 0:00:35.2]} 27... Qc8 {[%clk 0:00:20.3]}
28. cxb5 {[%clk 0:00:27.7]} 28... axb5 {[%clk 0:00:18.8]} 29. Qh5 {[%clk
0:00:20.5]} 29... Rxd1+ {[%clk 0:00:18]} 30. Qxd1 {[%clk 0:00:20.5]} 30... Bd6
{[%clk 0:00:14.1]} 31. Nf3 {[%clk 0:00:19.2]} 31... Qc5 {[%clk 0:00:10.9]} 32.
Nd4 {[%clk 0:00:17.1]} 32... Kf7 {[%clk 0:00:09.1]} 33. Nec2 {[%clk 0:00:15]}
33... e5 {[%clk 0:00:05.6]} 34. Qh5+ {[%clk 0:00:14.1]} 34... g6 {[%clk
0:00:04.7]} 35. Qxh7+ {[%clk 0:00:14.2]} 35... Kf6 {[%clk 0:00:05]} 36. Qh8+
{[%clk 0:00:13.7]} 36... Kf7 {[%clk 0:00:04.7]} 37. Qh7+ {[%clk 0:00:13.4]}
37... Kf6 {[%clk 0:00:04.6]} 38. Qh4+ {[%clk 0:00:12]} 38... Kf7 {[%clk
0:00:03.9]} 39. Qh7+ {[%clk 0:00:08.5]} 1/2-1/2

[Event "*** Titled Tuesday Blitz"]
[Site "Chess.com"]
[Date "2020.11.10"]
[Round "3"]
[White "Jumbo"]
[Black "GM_LOADING"]
[Result "1-0"]
[WhiteElo "2859"]
[BlackElo "2461"]
[TimeControl "180+1"]
[EndTime "10:31:56 PST"]
[Termination "Jumbo won by resignation"]

1. d4 {[%clk 0:03:00.9]} 1... Nf6 {[%clk 0:02:59.6]} 2. c4 {[%clk 0:03:01.3]}
2... e6 {[%clk 0:02:59.4]} 3. Nf3 {[%clk 0:02:59.8]} 3... Bb4+ {[%clk
0:02:59.5]} 4. Bd2 {[%clk 0:02:59.4]} 4... a5 {[%clk 0:02:57.6]} 5. Nc3 {[%clk
0:02:57.2]} 5... d6 {[%clk 0:02:56.4]} 6. Qc2 {[%clk 0:02:52.5]} 6... O-O {[%clk
0:02:54.8]} 7. e4 {[%clk 0:02:48.7]} 7... Nc6 {[%clk 0:02:50.1]} 8. Bd3 {[%clk
0:02:45]} 8... e5 {[%clk 0:02:49.8]} 9. d5 {[%clk 0:02:41.9]} 9... Ne7 {[%clk
0:02:39.1]} 10. h3 {[%clk 0:02:31.9]} 10... Ng6 {[%clk 0:02:31.1]} 11. g3 {[%clk
0:02:31.7]} 11... c6 {[%clk 0:02:22.5]} 12. a3 {[%clk 0:02:27.7]} 12... Bc5
{[%clk 0:02:12.5]} 13. Kf1 {[%clk 0:02:21.7]} 13... Bd7 {[%clk 0:02:07]} 14. Kg2
{[%clk 0:02:20.7]} 14... Rc8 {[%clk 0:02:00.5]} 15. Qb3 {[%clk 0:02:16.6]} 15...
b5 {[%clk 0:01:41.8]} 16. cxb5 {[%clk 0:02:12.4]} 16... cxd5 {[%clk 0:01:41.3]}
17. exd5 {[%clk 0:02:07.2]} 17... Bd4 {[%clk 0:01:15.4]} 18. Nxd4 {[%clk
0:01:54.5]} 18... exd4 {[%clk 0:01:14.6]} 19. Ne4 {[%clk 0:01:54.9]} 19... Ne5
{[%clk 0:01:02.8]} 20. Bg5 {[%clk 0:01:52.9]} 20... Re8 {[%clk 0:00:50.2]} 21.
Bxf6 {[%clk 0:01:48.7]} 21... gxf6 {[%clk 0:00:49.6]} 22. Nxd6 {[%clk
0:01:49.1]} 22... Bxh3+ {[%clk 0:00:49.2]} 23. Rxh3 {[%clk 0:01:47.3]} 23...
Qxd6 {[%clk 0:00:50.1]} 24. Bxh7+ {[%clk 0:01:47.2]} 24... Kf8 {[%clk 0:00:49]}
25. Bf5 {[%clk 0:01:47.6]} 25... Rc5 {[%clk 0:00:45.4]} 26. Re1 {[%clk
0:01:41.7]} 26... a4 {[%clk 0:00:41.9]} 27. Qxa4 {[%clk 0:01:14.1]} 27... Qxd5+
{[%clk 0:00:34.5]} 28. Be4 {[%clk 0:01:13.8]} 28... Qe6 {[%clk 0:00:26.2]} 29.
Rh8+ {[%clk 0:00:59]} 29... Kg7 {[%clk 0:00:24.9]} 30. Rxe8 {[%clk 0:00:55.8]}
30... Qxe8 {[%clk 0:00:24.9]} 31. Qxd4 {[%clk 0:00:56.1]} 31... Qxb5 {[%clk
0:00:20.1]} 32. Rh1 {[%clk 0:00:48.7]} 32... Ng6 {[%clk 0:00:11.7]} 33. b4
{[%clk 0:00:32.2]} 33... Re5 {[%clk 0:00:07]} 34. Bxg6 {[%clk 0:00:28.4]} 34...
fxg6 {[%clk 0:00:07]} 35. Qa7+ {[%clk 0:00:26.5]} 35... Kg8 {[%clk 0:00:04.8]}
36. Qh7+ {[%clk 0:00:20.2]} 36... Kf8 {[%clk 0:00:04.6]} 37. Qh8+ {[%clk
0:00:18.7]} 37... Kf7 {[%clk 0:00:05.2]} 38. Rh7+ {[%clk 0:00:19]} 38... Ke6
{[%clk 0:00:05.8]} 39. Qc8+ {[%clk 0:00:18.3]} 39... Kd5 {[%clk 0:00:05.5]} 40.
Rd7+ {[%clk 0:00:17.1]} 40... Ke4 {[%clk 0:00:05.9]} 41. Qc2+ {[%clk 0:00:17.3]}
1-0

[Event "*** Titled Tuesday Blitz"]
[Site "Chess.com"]
[Date "2020.11.10"]
[Round "3"]
[White "Aleksey_Sorokin"]
[Black "hypert"]
[Result "1/2-1/2"]
[WhiteElo "2736"]
[BlackElo "2455"]
[TimeControl "180+1"]
[EndTime "10:31:58 PST"]
[Termination "Game drawn by agreement"]

1. d4 {[%clk 0:03:00.9]} 1... d5 {[%clk 0:01:31.2]} 2. c4 {[%clk 0:02:59.5]}
2... c6 {[%clk 0:01:31.4]} 3. Nf3 {[%clk 0:02:57.9]} 3... Nf6 {[%clk 0:01:31.8]}
4. e3 {[%clk 0:02:53.9]} 4... e6 {[%clk 0:01:31.9]} 5. Nc3 {[%clk 0:02:54.3]}
5... Nbd7 {[%clk 0:01:32.1]} 6. Qc2 {[%clk 0:02:54.4]} 6... Bd6 {[%clk
0:01:32.3]} 7. b3 {[%clk 0:02:54.4]} 7... O-O {[%clk 0:01:30.6]} 8. Bb2 {[%clk
0:02:54.8]} 8... e5 {[%clk 0:01:30.5]} 9. h3 {[%clk 0:02:54.2]} 9... e4 {[%clk
0:01:24.4]} 10. Nd2 {[%clk 0:02:54.3]} 10... Re8 {[%clk 0:01:24.9]} 11. g4
{[%clk 0:02:53.1]} 11... h6 {[%clk 0:01:18.8]} 12. cxd5 {[%clk 0:02:47.8]} 12...
cxd5 {[%clk 0:01:18.3]} 13. Nb5 {[%clk 0:02:47.9]} 13... Bb8 {[%clk 0:01:18.1]}
14. Rc1 {[%clk 0:02:47.9]} 14... Nf8 {[%clk 0:01:13.2]} 15. Nc7 {[%clk
0:02:47.4]} 15... Bxc7 {[%clk 0:01:12.8]} 16. Qxc7 {[%clk 0:02:48.3]} 16... Qxc7
{[%clk 0:01:10]} 17. Rxc7 {[%clk 0:02:49.2]} 17... Ne6 {[%clk 0:01:10.2]} 18.
Rc3 {[%clk 0:02:46]} 18... Bd7 {[%clk 0:01:10.3]} 19. Be2 {[%clk 0:02:41.2]}
19... Rec8 {[%clk 0:01:08.2]} 20. Nb1 {[%clk 0:02:40.5]} 20... Rxc3 {[%clk
0:01:00.4]} 21. Nxc3 {[%clk 0:02:41.4]} 21... Rc8 {[%clk 0:01:00]} 22. h4 {[%clk
0:02:38.3]} 22... g5 {[%clk 0:00:58.7]} 23. hxg5 {[%clk 0:02:36.9]} 23... hxg5
{[%clk 0:00:56.7]} 24. Kd2 {[%clk 0:02:30.3]} 24... Kg7 {[%clk 0:00:54.6]} 25.
f3 {[%clk 0:02:29]} 25... exf3 {[%clk 0:00:49]} 26. Bxf3 {[%clk 0:02:29.9]}
26... Nc7 {[%clk 0:00:49.1]} 27. e4 {[%clk 0:02:14.4]} 27... dxe4 {[%clk
0:00:44.2]} 28. Nxe4 {[%clk 0:02:13.5]} 28... Bc6 {[%clk 0:00:20.3]} 29. d5
{[%clk 0:02:07.9]} 29... Nxd5 {[%clk 0:00:20.7]} 30. Nxg5 {[%clk 0:01:59.5]}
30... Kg6 {[%clk 0:00:18.3]} 31. Ne4 {[%clk 0:01:55.5]} 31... Rd8 {[%clk
0:00:16.4]} 32. Kc1 {[%clk 0:01:48.2]} 32... Nb4 {[%clk 0:00:14.7]} 33. Bxf6
{[%clk 0:01:47.1]} 33... Re8 {[%clk 0:00:13.3]} 34. g5 {[%clk 0:01:31.4]} 34...
Bxe4 {[%clk 0:00:12.3]} 35. Bh5+ {[%clk 0:01:31.5]} 35... Kf5 {[%clk 0:00:11.9]}
36. Rf1+ {[%clk 0:01:23.7]} 36... Ke6 {[%clk 0:00:11.6]} 37. Kb2 {[%clk
0:01:23.9]} 37... Nd3+ {[%clk 0:00:11]} 38. Ka3 {[%clk 0:01:21.8]} 38... Bg6
{[%clk 0:00:10.3]} 39. Bg4+ {[%clk 0:01:06.8]} 39... Kd5 {[%clk 0:00:08.3]} 40.
Bd7 {[%clk 0:01:04.8]} 40... Re2 {[%clk 0:00:06.3]} 41. Bb5 {[%clk 0:01:04.7]}
41... Kc5 {[%clk 0:00:05.2]} 42. Bc4 {[%clk 0:01:00.8]} 42... b5 {[%clk
0:00:04.4]} 43. Bd4+ {[%clk 0:00:42.5]} 43... Kxd4 {[%clk 0:00:04]} 44. Bxb5
{[%clk 0:00:42.8]} 44... a6 {[%clk 0:00:02.7]} 45. Bxa6 {[%clk 0:00:38.8]} 45...
Rg2 {[%clk 0:00:03.2]} 1/2-1/2

[Event "*** Titled Tuesday Blitz"]
[Site "Chess.com"]
[Date "2020.11.10"]
[Round "3"]
[White "Guenplen"]
[Black "pedromartinez91"]
[Result "1-0"]
[WhiteElo "2887"]
[BlackElo "2575"]
[TimeControl "180+1"]
[EndTime "10:32:00 PST"]
[Termination "Guenplen won by resignation"]

1. d4 {[%clk 0:03:00.9]} 1... b6 {[%clk 0:02:59]} 2. Bf4 {[%clk 0:02:58.2]} 2...
e6 {[%clk 0:02:56.4]} 3. e3 {[%clk 0:02:56.5]} 3... Nf6 {[%clk 0:02:56.6]} 4.
Nf3 {[%clk 0:02:56.8]} 4... c5 {[%clk 0:02:57]} 5. Nbd2 {[%clk 0:02:55.8]} 5...
cxd4 {[%clk 0:02:57.4]} 6. exd4 {[%clk 0:02:55.1]} 6... Be7 {[%clk 0:02:57.8]}
7. h3 {[%clk 0:02:53.4]} 7... O-O {[%clk 0:02:57.8]} 8. c3 {[%clk 0:02:53.6]}
8... d6 {[%clk 0:02:53.6]} 9. a4 {[%clk 0:02:52]} 9... Ba6 {[%clk 0:02:52.1]}
10. Bb5 {[%clk 0:02:49.7]} 10... Qc7 {[%clk 0:02:38.2]} 11. O-O {[%clk
0:02:47.2]} 11... Qb7 {[%clk 0:02:36.3]} 12. Qe2 {[%clk 0:02:46.3]} 12... Bxb5
{[%clk 0:02:36.1]} 13. axb5 {[%clk 0:02:46.9]} 13... a5 {[%clk 0:02:35.4]} 14.
Rfe1 {[%clk 0:02:40.9]} 14... Nbd7 {[%clk 0:02:31.7]} 15. Nc4 {[%clk 0:02:39.4]}
15... Qc7 {[%clk 0:02:27.7]} 16. Ne3 {[%clk 0:02:37]} 16... Rfe8 {[%clk
0:02:24]} 17. Bh2 {[%clk 0:02:34.6]} 17... Bf8 {[%clk 0:02:23.6]} 18. Rac1
{[%clk 0:02:15]} 18... Qb7 {[%clk 0:02:18]} 19. Nc4 {[%clk 0:02:07.3]} 19... Qd5
{[%clk 0:02:12]} 20. Ne3 {[%clk 0:02:04.2]} 20... Qe4 {[%clk 0:02:06.9]} 21. Nd2
{[%clk 0:02:03.2]} 21... Qb7 {[%clk 0:02:01.8]} 22. Ndc4 {[%clk 0:02:02.9]}
22... d5 {[%clk 0:02:01.6]} 23. Nd6 {[%clk 0:01:54.3]} 23... Bxd6 {[%clk
0:02:01.5]} 24. Bxd6 {[%clk 0:01:55.2]} 24... Ne4 {[%clk 0:02:00.5]} 25. Ba3
{[%clk 0:01:54.9]} 25... Qc7 {[%clk 0:01:53.5]} 26. Ng4 {[%clk 0:01:53.6]} 26...
Nd6 {[%clk 0:01:50.1]} 27. Bxd6 {[%clk 0:01:47.8]} 27... Qxd6 {[%clk 0:01:51]}
28. h4 {[%clk 0:01:39.8]} 28... a4 {[%clk 0:01:40.7]} 29. h5 {[%clk 0:01:39.4]}
29... h6 {[%clk 0:01:37.3]} 30. Qf3 {[%clk 0:01:39.3]} 30... a3 {[%clk 0:01:32]}
31. bxa3 {[%clk 0:01:40.2]} 31... Rxa3 {[%clk 0:01:32]} 32. Re3 {[%clk
0:01:39.7]} 32... Rea8 {[%clk 0:01:25.8]} 33. c4 {[%clk 0:01:37.4]} 33... Ra1
{[%clk 0:01:23.4]} 34. Ree1 {[%clk 0:01:32.9]} 34... Rxc1 {[%clk 0:01:08.9]} 35.
Rxc1 {[%clk 0:01:33.8]} 35... Rc8 {[%clk 0:01:07.4]} 36. Ne3 {[%clk 0:01:23.5]}
36... dxc4 {[%clk 0:01:01.5]} 37. Qb7 {[%clk 0:01:15.7]} 37... Qc7 {[%clk
0:00:47.1]} 38. Qxc7 {[%clk 0:01:07.5]} 38... Rxc7 {[%clk 0:00:48]} 39. Rxc4
{[%clk 0:01:07.8]} 39... Rxc4 {[%clk 0:00:45.7]} 40. Nxc4 {[%clk 0:01:08.7]}
40... Kf8 {[%clk 0:00:45.9]} 41. g4 {[%clk 0:00:57.2]} 41... Ke7 {[%clk
0:00:45.7]} 42. f3 {[%clk 0:00:57.6]} 42... Kd8 {[%clk 0:00:42.8]} 43. Kf2
{[%clk 0:00:57.1]} 43... Kc7 {[%clk 0:00:43.3]} 44. Ke3 {[%clk 0:00:57.1]} 44...
f6 {[%clk 0:00:39.8]} 45. f4 {[%clk 0:00:56.4]} 45... Nf8 {[%clk 0:00:34]} 46.
f5 {[%clk 0:00:43.4]} 46... exf5 {[%clk 0:00:26.4]} 47. gxf5 {[%clk 0:00:44.3]}
47... Nd7 {[%clk 0:00:27]} 48. Ke4 {[%clk 0:00:44]} 48... Nf8 {[%clk 0:00:21.6]}
49. Kd5 {[%clk 0:00:42.1]} 49... Nh7 {[%clk 0:00:14.9]} 50. Ke6 {[%clk
0:00:41.8]} 50... Ng5+ {[%clk 0:00:15.8]} 51. Ke7 {[%clk 0:00:42.1]} 51... Nf3
{[%clk 0:00:16.7]} 52. d5 {[%clk 0:00:40.5]} 52... Nd4 {[%clk 0:00:15.6]} 53.
d6+ {[%clk 0:00:40.7]} 53... Kb7 {[%clk 0:00:15.5]} 54. d7 {[%clk 0:00:36.1]}
54... Nxf5+ {[%clk 0:00:15.6]} 55. Ke8 {[%clk 0:00:35.9]} 1-0

[Event "*** Titled Tuesday Blitz"]
[Site "Chess.com"]
[Date "2020.11.10"]
[Round "3"]
[White "vanyakuba"]
[Black "Vandros57"]
[Result "1-0"]
[WhiteElo "2500"]
[BlackElo "2207"]
[TimeControl "180+1"]
[EndTime "10:32:00 PST"]
[Termination "vanyakuba won on time"]

1. e4 {[%clk 0:03:00.9]} 1... c5 {[%clk 0:02:58.4]} 2. c3 {[%clk 0:03:00]} 2...
d5 {[%clk 0:02:57]} 3. exd5 {[%clk 0:02:59.9]} 3... Qxd5 {[%clk 0:02:56.5]} 4.
d4 {[%clk 0:03:00.2]} 4... Nf6 {[%clk 0:02:55.4]} 5. Nf3 {[%clk 0:03:00]} 5...
Bg4 {[%clk 0:02:52]} 6. Be2 {[%clk 0:02:59.7]} 6... e6 {[%clk 0:02:49.6]} 7. h3
{[%clk 0:02:59.7]} 7... Bh5 {[%clk 0:02:46.5]} 8. O-O {[%clk 0:02:59.5]} 8...
Nc6 {[%clk 0:02:42.2]} 9. Be3 {[%clk 0:02:57.8]} 9... cxd4 {[%clk 0:02:40.3]}
10. cxd4 {[%clk 0:02:52.3]} 10... Bd6 {[%clk 0:02:18.7]} 11. Nc3 {[%clk
0:02:51.9]} 11... Qa5 {[%clk 0:02:16.3]} 12. Qb3 {[%clk 0:02:37.5]} 12... Qb4
{[%clk 0:02:11.9]} 13. Nb5 {[%clk 0:02:18]} 13... Qxb3 {[%clk 0:01:49.3]} 14.
Nxd6+ {[%clk 0:02:17.5]} 14... Ke7 {[%clk 0:01:42]} 15. Nf5+ {[%clk 0:02:16.7]}
15... exf5 {[%clk 0:01:40.4]} 16. axb3 {[%clk 0:02:16.5]} 16... Nd5 {[%clk
0:01:23.9]} 17. Bc4 {[%clk 0:01:37.1]} 17... Nxe3 {[%clk 0:01:20.5]} 18. fxe3
{[%clk 0:01:38]} 18... Bxf3 {[%clk 0:01:18.2]} 19. Rxf3 {[%clk 0:01:33.8]} 19...
g6 {[%clk 0:01:17.4]} 20. g4 {[%clk 0:01:33.8]} 20... fxg4 {[%clk 0:00:56.9]}
21. Rxf7+ {[%clk 0:01:32.9]} 21... Kd6 {[%clk 0:00:56.7]} 22. Rf6+ {[%clk
0:01:20.8]} 22... Kc7 {[%clk 0:00:52.9]} 23. hxg4 {[%clk 0:01:19.8]} 23... Rae8
{[%clk 0:00:45.9]} 24. Rf7+ {[%clk 0:01:16.4]} 24... Kb6 {[%clk 0:00:39.3]} 25.
Kf2 {[%clk 0:00:59.3]} 25... Rhf8 {[%clk 0:00:37.5]} 26. Rxf8 {[%clk 0:00:59.6]}
26... Rxf8+ {[%clk 0:00:37.4]} 27. Ke2 {[%clk 0:00:59.9]} 27... h5 {[%clk
0:00:33]} 28. gxh5 {[%clk 0:00:37.2]} 28... gxh5 {[%clk 0:00:32.8]} 29. Rh1
{[%clk 0:00:37.8]} 29... Rf5 {[%clk 0:00:29]} 30. Bd3 {[%clk 0:00:34.7]} 30...
Rg5 {[%clk 0:00:28.5]} 31. Be4 {[%clk 0:00:33.3]} 31... Na5 {[%clk 0:00:20.8]}
32. Bf3 {[%clk 0:00:27.6]} 32... Nxb3 {[%clk 0:00:20.2]} 33. Rxh5 {[%clk
0:00:27.2]} 33... Rxh5 {[%clk 0:00:19.7]} 34. Bxh5 {[%clk 0:00:27.6]} 34... a5
{[%clk 0:00:19.2]} 35. Kd1 {[%clk 0:00:22.2]} 35... a4 {[%clk 0:00:18.4]} 36.
Bf7 {[%clk 0:00:22]} 36... Na5 {[%clk 0:00:17.7]} 37. Kd2 {[%clk 0:00:21]} 37...
Kb5 {[%clk 0:00:16.5]} 38. Kc3 {[%clk 0:00:20.3]} 38... b6 {[%clk 0:00:16.1]}
39. Be8+ {[%clk 0:00:18.7]} 39... Ka6 {[%clk 0:00:14.6]} 40. Bxa4 {[%clk
0:00:18.4]} 40... b5 {[%clk 0:00:14.1]} 41. Bb3 {[%clk 0:00:17.1]} 41... Kb6
{[%clk 0:00:12.9]} 42. Bd5 {[%clk 0:00:17]} 1-0

[Event "*** Titled Tuesday Blitz"]
[Site "Chess.com"]
[Date "2020.11.10"]
[Round "3"]
[White "dominikaf"]
[Black "stolencandy13"]
[Result "1-0"]
[WhiteElo "2216"]
[BlackElo "2373"]
[TimeControl "180+1"]
[EndTime "10:32:00 PST"]
[Termination "dominikaf won by resignation"]

1. e4 {[%clk 0:03:00.9]} 1... c6 {[%clk 0:02:59.7]} 2. d3 {[%clk 0:03:00.6]}
2... d5 {[%clk 0:03:00.6]} 3. e5 {[%clk 0:03:00.6]} 3... Bf5 {[%clk 0:02:58.4]}
4. f4 {[%clk 0:03:01.2]} 4... e6 {[%clk 0:02:58.1]} 5. Nf3 {[%clk 0:03:02]} 5...
c5 {[%clk 0:02:54.9]} 6. c3 {[%clk 0:03:02.4]} 6... Nc6 {[%clk 0:02:53.9]} 7.
Na3 {[%clk 0:03:00.9]} 7... h5 {[%clk 0:02:50.8]} 8. Nc2 {[%clk 0:03:00.6]} 8...
d4 {[%clk 0:02:48.3]} 9. c4 {[%clk 0:03:00.1]} 9... Nh6 {[%clk 0:02:44.7]} 10.
h3 {[%clk 0:02:57.4]} 10... h4 {[%clk 0:02:41.4]} 11. Be2 {[%clk 0:02:52.5]}
11... Be7 {[%clk 0:02:41.2]} 12. O-O {[%clk 0:02:51.9]} 12... Bg6 {[%clk
0:02:41.7]} 13. Bd2 {[%clk 0:02:35.4]} 13... Nf5 {[%clk 0:02:41.6]} 14. Be1
{[%clk 0:02:35.7]} 14... Bh5 {[%clk 0:02:35.2]} 15. Kh2 {[%clk 0:02:26.8]} 15...
a5 {[%clk 0:02:26]} 16. a3 {[%clk 0:02:26.4]} 16... a4 {[%clk 0:02:21.9]} 17.
Rb1 {[%clk 0:02:26.6]} 17... Na5 {[%clk 0:02:18.3]} 18. Ng5 {[%clk 0:02:26.2]}
18... Bxe2 {[%clk 0:02:09.5]} 19. Qxe2 {[%clk 0:02:26.4]} 19... Bxg5 {[%clk
0:02:09.8]} 20. fxg5 {[%clk 0:02:26.4]} 20... Qxg5 {[%clk 0:02:10.4]} 21. Rf3
{[%clk 0:02:06.4]} 21... Nc6 {[%clk 0:02:06.3]} 22. b4 {[%clk 0:01:59.7]} 22...
axb3 {[%clk 0:02:04.7]} 23. Rxb3 {[%clk 0:02:00]} 23... Rb8 {[%clk 0:01:58.8]}
24. Qe4 {[%clk 0:01:54.8]} 24... O-O {[%clk 0:01:54.9]} 25. Rb5 {[%clk
0:01:18.7]} 25... Ng3 {[%clk 0:01:40.3]} 26. Bxg3 {[%clk 0:01:02.6]} 26... hxg3+
{[%clk 0:01:41.2]} 27. Rxg3 {[%clk 0:01:02.6]} 27... Qxe5 {[%clk 0:01:41.7]} 28.
Qxe5 {[%clk 0:01:00.4]} 28... Nxe5 {[%clk 0:01:42.6]} 29. Rxc5 {[%clk 0:01:01]}
29... Nc6 {[%clk 0:01:41.8]} 30. Nb4 {[%clk 0:00:53.5]} 30... Nxb4 {[%clk
0:01:37.7]} 31. axb4 {[%clk 0:00:54.2]} 31... Rfc8 {[%clk 0:01:31.9]} 32. Rxc8+
{[%clk 0:00:50.8]} 32... Rxc8 {[%clk 0:01:32.8]} 33. Rg5 {[%clk 0:00:44.2]}
33... f6 {[%clk 0:01:29]} 34. Rb5 {[%clk 0:00:44.1]} 34... Rc7 {[%clk 0:01:29]}
35. Kg3 {[%clk 0:00:43.9]} 35... Kf7 {[%clk 0:01:28.5]} 36. Kf4 {[%clk
0:00:44.4]} 36... Ke7 {[%clk 0:01:13]} 37. g4 {[%clk 0:00:44.7]} 37... g6 {[%clk
0:01:01.8]} 38. Ke4 {[%clk 0:00:43.4]} 38... e5 {[%clk 0:01:01.5]} 39. c5 {[%clk
0:00:37.7]} 39... Ke6 {[%clk 0:00:57.5]} 40. Rb6+ {[%clk 0:00:37.9]} 40... Ke7
{[%clk 0:00:42.4]} 41. g5 {[%clk 0:00:38.2]} 41... f5+ {[%clk 0:00:34.8]} 42.
Kxe5 {[%clk 0:00:38.1]} 42... Kf7 {[%clk 0:00:34.8]} 43. Kxd4 {[%clk 0:00:33]}
43... Re7 {[%clk 0:00:34.4]} 44. b5 {[%clk 0:00:27.3]} 44... Kg7 {[%clk
0:00:32.4]} 45. Rf6 {[%clk 0:00:27.1]} 45... Rd7+ {[%clk 0:00:30.1]} 46. Kc4
{[%clk 0:00:27]} 46... Re7 {[%clk 0:00:26.5]} 47. c6 {[%clk 0:00:27]} 47... bxc6
{[%clk 0:00:26.4]} 48. bxc6 {[%clk 0:00:27.9]} 48... Re1 {[%clk 0:00:20.4]} 49.
d4 {[%clk 0:00:25.1]} 49... Rh1 {[%clk 0:00:20]} 50. d5 {[%clk 0:00:24.7]} 50...
Rxh3 {[%clk 0:00:19.7]} 51. d6 {[%clk 0:00:23.8]} 51... Rh4+ {[%clk 0:00:19]}
52. Kc5 {[%clk 0:00:23.6]} 52... Rg4 {[%clk 0:00:19.1]} 53. c7 {[%clk
0:00:22.6]} 53... Rg1 {[%clk 0:00:18.2]} 54. d7 {[%clk 0:00:21.3]} 1-0